bitfinex/quotes_SOLUSD_20260306
["timestamp","ask_amount","ask_price","bid_price","bid_amount"]
[1772811072613,41.10972773,85.138,85.051,0.5]
[1772811072790,11.74370537,85.152,85.051,0.5]
[1772811072995,0.28432314,85.151,85.053,0.5]
[1772811073301,60.49941893,85.221,85.053,0.5]
[1772811073302,11.74232638,85.162,85.059,0.5]
[1772811073498,41.09814235,85.162,85.065,0.5]
[1772811074012,29.35581597,85.162,85.071,0.5]
[1772811074214,0.28432314,85.161,85.075,0.5]
[1772811074604,29.35581597,85.162,85.079,0.28432314]
[1772811074806,10.83381829,85.16,85.08,0.5]
[1772811075010,10.83381829,85.16,85.082,0.5]
[1772811075211,0.28432314,85.161,85.082,0.5]
[1772811075408,11.74163701,85.167,85.084,0.5]
[1772811075719,11.74163701,85.167,85.088,0.5]
[1772811075893,41.09572955,85.167,85.093,0.14216157]
[1772811076099,41.09572955,85.167,85.096,0.5]
[1772811076496,11.74163701,85.167,85.098,0.5]
[1772811076912,11.74163701,85.167,85.099,0.5]
[1772811077112,11.74163701,85.167,85.059,4.82477569]
[1772811077113,0.1,85.17,85.101,0.5]
[1772811077616,11.74136129,85.169,85.103,0.5]
[1772811077798,0.1,85.17,85.108,0.5]
[1772811078001,0.1,85.17,85.111,0.5]
[1772811078316,10.83381829,85.2,85.111,0.5]
[1772811078519,41.07836577,85.203,85.111,0.5]
[1772811078819,41.07836577,85.203,85.113,0.5]
[1772811079007,10.83381829,85.2,85.113,0.5]
[1772811079216,10.83381829,85.2,85.115,0.5]
[1772811079719,10.83381829,85.19,85.117,0.5]
[1772811079906,41.08511661,85.189,85.123,0.5]
[1772811080110,58.68337969,85.203,85.122,0.28432314]
[1772811080111,29.3415867,85.204,85.127,0.5]
[1772811080610,10.83381829,85.2,85.127,0.5]
[1772811080923,10.83381829,85.19,85.127,0.5]
[1772811081416,10.83381829,85.18,85.127,0.5]
[1772811081645,0.28432314,85.188,85.113,0.5]
[1772811081646,10.83381829,85.16,85.113,0.5]
[1772811081809,10.83381829,85.16,85.114,0.5]
[1772811082011,41.09959017,85.159,85.116,0.5]
[1772811082222,11.74274005,85.159,85.117,0.5]
[1772811082405,41.09959017,85.159,85.117,0.5]
[1772811083015,10.83381829,85.19,85.119,0.5]
[1772811083326,41.07547323,85.209,85.12,0.5]
[1772811083715,41.07547323,85.209,85.122,0.5]
[1772811084014,10.83381829,85.21,85.128,0.5]
[1772811084219,41.07065324,85.219,85.13,0.5]
[1772811084620,10.83381829,85.21,85.132,0.5]
[1772811084918,0.28432314,85.218,85.136,0.5]
[1772811085121,41.07065324,85.219,85.141,0.5]
[1772811085628,10.83381829,85.21,85.141,0.5]
[1772811086128,41.07547323,85.209,85.146,0.28432314]
[1772811086425,41.07547323,85.209,85.147,0.5]
[1772811087322,10.83381829,85.19,85.143,0.5]
[1772811087522,10.83381829,85.2,85.143,0.5]
[1772811087727,99.75472072,85.209,85.143,0.5]
[1772811087728,41.07547323,85.209,85.143,0.5]
[1772811087931,41.07547323,85.209,85.144,0.5]
[1772811088321,41.07547323,85.209,85.147,0.5]
[1772811088624,10.83381829,85.2,85.147,0.5]
[1772811088919,41.07547323,85.209,85.147,0.5]
[1772811089323,99.75472072,85.209,85.147,0.5]
[1772811089627,10.83381829,85.2,85.147,0.5]
[1772811090526,41.08029436,85.199,85.149,0.5]
[1772811093431,41.08029436,85.199,85.139,3.69383402]
[1772811093432,11.73722696,85.199,85.151,0.5]
[1772811094131,41.08029436,85.199,85.151,0.5]
[1772811095834,29.3430674,85.199,85.152,11.74370537]
[1772811096015,29.3430674,85.199,85.153,0.5]
[1772811096330,11.73309554,85.229,85.156,0.46105671]
[1772811096649,0.2,85.228,85.158,0.46105671]
[1772811097717,11.73337088,85.227,85.16,0.14216157]
[1772811097931,0.2,85.226,85.163,0.46105671]
[1772811098125,0.2,85.209,85.163,0.46105671]
[1772811098522,0.2,85.199,85.163,0.46105671]
[1772811099618,0.28432314,85.222,85.163,0.46105671]
[1772811099619,0.2,85.222,85.163,0.46105671]
[1772811099831,0.2,85.222,85.166,0.46105671]
[1772811100233,11.73419697,85.221,85.166,0.46105671]
[1772811100414,0.2,85.219,85.166,0.46105671]
[1772811101922,0.2,85.217,85.168,0.46105671]
[1772811102324,11.03381829,85.2,85.168,0.46105671]
[1772811102519,0.2,85.199,85.167,11.74163701]
[1772811102721,0.2,85.209,85.168,0.46105671]
[1772811103637,0.2,85.189,85.158,11.74287794]
[1772811103832,11.73874254,85.188,85.149,11.74411913]
[1772811104034,0.2,85.187,85.15,0.46105671]
[1772811104435,0.2,85.169,85.137,11.74577445]
[1772811104643,0.2,85.169,85.137,41.11021059]
[1772811105020,0.2,85.179,85.138,0.46105671]
[1772811105725,0.2,85.192,85.139,0.46105671]
[1772811106022,0.48432314,85.203,85.144,0.46105671]
[1772811106238,0.2,85.202,85.145,0.46105671]
[1772811107025,11.73584537,85.21,85.145,0.46105671]
[1772811107225,0.2,85.209,85.145,0.46105671]
[1772811107425,0.2,85.199,85.145,0.46105671]
[1772811108135,0.2,85.197,85.147,0.46105671]
[1772811108340,0.2,85.189,85.147,0.46105671]
[1772811109243,0.2,85.169,85.136,14.13296737]
[1772811110238,0.2,85.169,85.139,11.74549853]
[1772811110419,0.2,85.179,85.139,11.74549853]
[1772811110619,0.2,85.178,85.139,11.74549853]
[1772811111029,0.2,85.178,85.14,0.46105671]
[1772811111324,11.73951158,85.183,85.14,0.46105671]
[1772811111526,4.82477569,85.209,85.14,0.46105671]
[1772811111527,0.2,85.197,85.141,0.46105671]
[1772811111727,0.2,85.197,85.143,0.46105671]
[1772811112341,11.93764026,85.196,85.146,0.46105671]
[1772811112833,0.2,85.195,85.146,0.46105671]
[1772811113341,0.2,85.206,85.146,0.46105671]
[1772811113544,0.2,85.199,85.146,0.46105671]
[1772811114127,0.2,85.179,85.144,11.74480879]
[1772811114529,0.28432314,85.204,85.136,14.59402408]
[1772811114530,11.94012068,85.178,85.138,0.46105671]
[1772811117246,11.94012068,85.178,85.136,14.13296737]
[1772811117247,0.2,85.177,85.14,0.48238146]
[1772811117543,0.2,85.177,85.139,41.10924487]
[1772811117849,0.2,85.177,85.14,0.48238146]
[1772811118041,11.73901814,85.186,85.14,0.48238146]
[1772811118235,0.2,85.185,85.14,0.48238146]
[1772811120247,0.2,85.179,85.142,0.48238146]
[1772811120945,0.28432314,85.204,85.142,0.48238146]
[1772811120946,11.73860595,85.189,85.142,0.48238146]
[1772811121148,0.2,85.193,85.142,0.48238146]
[1772811121356,11.73740982,85.198,85.143,0.48238146]
[1772811121530,0.2,85.197,85.143,0.48238146]
[1772811122143,0.2,85.187,85.144,11.74480879]
[1772811122342,0.2,85.179,85.144,11.74480879]
[1772811122547,0.2,85.179,85.139,11.74539877]
[1772811123244,41.0855989,85.188,85.131,0.4794875]
[1772811123245,0.2,85.169,85.135,11.74602071]
[1772811123659,0.2,85.159,85.127,11.74710479]
[1772811123947,0.2,85.149,85.119,11.74825832]
[1772811124157,0.2,85.137,85.105,11.75019094]
[1772811124347,10.82380074,85.13,85.085,0.4794875]
[1772811124546,0.2,85.119,85.055,0.4794875]
[1772811124854,0.2,85.119,85.058,0.4794875]
[1772811125054,0.2,85.119,85.059,0.4794875]
[1772811125934,0.2,85.129,85.059,0.4794875]
[1772811126139,0.2,85.127,85.064,0.4794875]
[1772811126763,0.2,85.12,85.065,0.4794875]
[1772811127137,0.2,85.127,85.065,0.4794875]
[1772811127852,11.74729224,85.126,85.065,0.4794875]
[1772811128058,0.2,85.125,85.071,0.4794875]
[1772811128757,11.74652469,85.132,85.071,0.4794875]
[1772811130056,11.74652469,85.132,85.073,0.4794875]
[1772811131661,0.2,85.131,85.073,0.4794875]
[1772811131856,46.94108363,85.214,85.073,0.4794875]
[1772811131857,0.2,85.16,85.076,0.4794875]
[1772811132058,11.74287794,85.158,85.082,0.4794875]
[1772811132251,11.94287794,85.158,85.083,0.4794875]
[1772811132853,0.2,85.157,85.083,0.4794875]
[1772811133660,0.2,85.149,85.083,0.4794875]
[1772811133857,41.1000728,85.158,85.083,0.4794875]
[1772811134041,41.1000728,85.158,85.087,3.69383402]
[1772811134359,11.74287794,85.158,85.089,0.4794875]
[1772811134944,11.74287794,85.158,85.093,0.4794875]
[1772811135142,11.74163701,85.167,85.094,0.4794875]
[1772811135347,11.74163701,85.167,85.1,0.4794875]
[1772811135546,0.2,85.187,85.102,0.4794875]
[1772811135762,46.89735255,85.293,85.101,0.28432314]
[1772811135763,6.11621667,85.205,85.114,3.69383402]
[1772811136059,6.11621667,85.205,85.103,17.99477927]
[1772811136060,0.2,85.214,85.121,0.4794875]
[1772811136265,0.2,85.209,85.127,0.4794875]
[1772811136462,11.73480023,85.217,85.129,0.4794875]
[1772811136669,11.93480023,85.217,85.129,0.4794875]
[1772811137050,0.2,85.216,85.129,0.4794875]
[1772811137251,0.2,85.215,85.129,0.4794875]
[1772811137450,0.2,85.215,85.131,0.4794875]
[1772811137645,10.82380074,85.21,85.131,0.4794875]
[1772811137862,0.2,85.199,85.131,0.4794875]
[1772811138565,0.2,85.199,85.133,0.4794875]
[1772811138566,0.2,85.179,85.133,0.4794875]
[1772811139663,0.2,85.177,85.135,0.4794875]
[1772811140283,0.2,85.187,85.136,0.4794875]
[1772811140580,11.73878291,85.188,85.136,0.4794875]
[1772811141386,0.2,85.207,85.138,0.76381064]
[1772811141551,0.2,85.199,85.139,0.4794875]
[1772811141859,0.2,85.199,85.128,17.26283372]
[1772811141860,0.2,85.169,85.128,17.74232122]
[1772811142061,0.2,85.169,85.13,0.4794875]
[1772811142450,0.2,85.179,85.13,0.4794875]
[1772811142666,0.2,85.169,85.13,0.4794875]
[1772811143076,0.2,85.178,85.13,0.4794875]
[1772811143569,0.2,85.169,85.13,0.4794875]
[1772811143770,0.2,85.167,85.129,11.74687826]
[1772811144470,11.94149915,85.168,85.13,0.4794875]
[1772811144671,41.29524703,85.168,85.13,0.4794875]
[1772811144877,0.2,85.167,85.13,0.4794875]
[1772811145557,0.2,85.167,85.128,17.26283372]
[1772811145760,10.82380074,85.15,85.128,17.06283372]
[1772811145954,11.74274005,85.159,85.128,28.80973683]
[1772811146154,11.74274005,85.159,85.129,0.5]
[1772811146750,4.82477569,85.189,85.129,0.5]
[1772811146751,11.74067203,85.174,85.129,0.5]
[1772811146950,41.09235212,85.174,85.129,0.5]
[1772811147380,10.82380074,85.17,85.128,28.80973683]
[1772811147679,5.10909883,85.173,85.128,17.06283372]
[1772811147979,10.82380074,85.15,85.102,11.75060515]
[1772811148282,10.82380074,85.15,85.103,0.5]
[1772811149474,10.82380074,85.12,85.083,0.5]
[1772811149854,11.74825832,85.119,85.084,11.75309106]
[1772811150864,41.11890412,85.119,85.084,11.75309106]
[1772811151054,41.11890412,85.119,85.075,0.5]
[1772811151259,10.82380074,85.11,85.075,0.5]
[1772811151567,10.82380074,85.11,85.044,58.7927571]
[1772811151568,10.82380074,85.1,85.059,0.5]
[1772811151772,10.82380074,85.1,85.06,0.5]
[1772811151966,10.82380074,85.11,85.062,0.5]
[1772811152164,10.82380074,85.11,85.045,3.69383402]
[1772811152165,10.82380074,85.07,85.034,0.5]
[1772811152355,10.82380074,85.06,85.034,0.5]
[1772811152557,10.82380074,85.07,85.034,0.5]
[1772811152856,0.28432314,85.082,85.034,0.5]
[1772811153067,10.82380074,85.06,85.023,0.5]
[1772811153266,10.82380074,85.07,85.023,0.5]
[1772811153492,0.28432314,85.059,85.02,1e-08]
[1772811153782,10.82380074,85.03,85.02,1e-08]
[1772811154077,11.76069341,85.029,85.02,1e-08]
[1772811154261,11.75931043,85.039,85.02,1e-08]
[1772811154663,11.75792778,85.049,85.02,1e-08]
[1772811154863,10.82380074,85.04,85.02,1e-08]
[1772811155379,10.82380074,85.06,85.02,0.50000001]
[1772811155876,10.82380074,85.05,85.02,1e-08]
[1772811156179,11.75792778,85.049,85.02,1e-08]
[1772811156473,11.75654545,85.059,85.02,1e-08]
[1772811157079,10.82380074,85.04,85.02,1e-08]
[1772811157576,10.82380074,85.05,85.02,1e-08]
[1772811158362,11.75668367,85.058,85.02,1e-08]
[1772811158566,41.14839285,85.058,85.02,1e-08]
[1772811158779,10.82380074,85.05,85.02,1e-08]
[1772811159571,11.75668367,85.058,85.02,1e-08]
[1772811160580,0.28432314,85.068,85.02,1e-08]
[1772811161164,29.38815771,85.069,85.02,1e-08]
[1772811161370,0.28432314,85.068,85.02,1e-08]
[1772811161579,10.82380074,85.04,85.02,1e-08]
[1772811161962,10.82380074,85.05,85.02,1e-08]
[1772811162163,10.82380074,85.04,85.02,1e-08]
[1772811162386,10.82380074,85.05,85.02,1e-08]
[1772811162673,10.8617282,85.05,85.02,1e-08]
[1772811163477,0.28432314,85.059,85.02,1e-08]
[1772811163667,10.8617282,85.04,85.02,1e-08]
[1772811163868,0.28432314,85.059,85.02,1e-08]
[1772811164070,10.8617282,85.06,85.02,1e-08]
[1772811164462,11.75654545,85.059,85.02,1e-08]
[1772811164878,41.14790909,85.059,85.02,1e-08]
[1772811165665,11.75654545,85.059,85.02,1e-08]
[1772811166386,10.8617282,85.05,85.02,1e-08]
[1772811166772,11.75756249,85.052,85.02,1e-08]
[1772811166971,11.75672631,85.058,85.02,1e-08]
[1772811167163,11.75530164,85.068,85.02,1e-08]
[1772811167363,4.82477569,85.089,85.02,1e-08]
[1772811167364,40.24247375,85.09,85.02,1e-08]
[1772811167575,29.38074555,85.09,85.02,1e-08]
[1772811167773,41.1285679,85.099,85.02,1e-08]
[1772811168092,11.7510194,85.099,85.02,1e-08]
[1772811168796,11.7510194,85.099,85.02,0.50000001]
[1772811169690,11.7510194,85.099,85.023,0.5]
[1772811170186,10.8617282,85.09,85.023,0.5]
[1772811171375,11.75129558,85.097,85.028,0.5]
[1772811171583,11.75129558,85.097,85.029,0.5]
[1772811172585,41.40805857,85.109,85.034,0.5]
[1772811173094,41.12373543,85.109,85.035,0.5]
[1772811174091,11.74963869,85.109,85.035,0.5]
[1772811174469,11.74963869,85.109,85.039,0.5]
[1772811174672,11.74963869,85.109,85.034,102.9]
[1772811174673,0.28432314,85.114,85.044,0.5]
[1772811174872,10.8617282,85.1,85.045,0.5]
[1772811176382,10.8617282,85.09,85.047,0.5]
[1772811177996,10.8617282,85.1,85.047,0.5]
[1772811179399,11.7510194,85.099,85.049,0.5]
[1772811179693,41.1285679,85.099,85.049,0.5]
[1772811179895,0.28432314,85.098,85.049,0.5]
[1772811180203,10.8617282,85.09,85.049,0.5]
[1772811181099,0.28432314,85.089,85.039,0.5]
[1772811181299,41.13823621,85.079,85.04,11.75917215]
[1772811181499,41.13823621,85.079,85.041,0.5]
[1772811181793,11.75378177,85.079,85.041,0.5]
[1772811182295,11.75253854,85.088,85.041,0.5]
[1772811182894,41.13388491,85.088,85.041,0.5]
[1772811183686,10.8617282,85.08,85.042,11.7588956]
[1772811184897,0.28432314,85.078,85.031,0.5]
[1772811185094,0.28432314,85.078,85.02,1e-08]
[1772811185095,10.8617282,85.07,85.02,1e-08]
[1772811185293,10.8617282,85.05,85.02,1e-08]
[1772811185499,10.8617282,85.04,85.02,1e-08]
[1772811186099,0.28432314,85.059,85.02,1e-08]
[1772811186295,10.8617282,85.04,85.02,1e-08]
[1772811186906,10.8617282,85.03,84.983,0.5]
[1772811187699,10.8617282,85.02,84.982,0.5]
[1772811187896,10.8617282,85.01,84.982,11.76719775]
[1772811188097,10.8617282,85.02,84.981,8.00617065]
[1772811188498,10.8617282,85.05,84.981,8.00617065]
[1772811188499,10.8617282,85.04,84.982,0.5]
[1772811188699,0.28432314,85.039,84.982,0.5]
[1772811189295,0.28432314,85.037,84.984,0.5]
[1772811190406,11.75944871,85.038,84.984,0.5]
[1772811190601,10.8617282,85.04,84.985,41.1837383]
[1772811190794,10.8617282,85.04,84.986,0.5]
[1772811191187,10.8617282,85.03,84.986,0.5]
[1772811191588,10.8617282,85.04,84.986,0.5]
[1772811192003,10.8617282,85.03,84.986,0.5]
[1772811192208,10.8617282,85.02,84.986,0.5]
[1772811192404,10.8617282,85.01,84.981,0.47295302]
[1772811192606,10.8617282,85.0,84.981,0.47295302]
[1772811192805,10.8617282,84.99,84.981,0.47295302]
[1772811193007,10.8617282,85.0,84.95,0.5]
[1772811193193,3.69383402,85.045,84.981,11.76733622]
[1772811193391,10.8617282,85.01,84.97,11.76873592]
[1772811193594,10.8617282,85.0,84.965,11.76941648]
[1772811193798,10.8617282,85.0,84.959,0.5]
[1772811194000,10.8617282,85.0,84.975,11.76803648]
[1772811194191,0.28432314,85.009,84.98,11.96737106]
[1772811194391,0.28432314,85.009,84.98,0.2]
[1772811194392,10.8617282,85.0,84.98,0.2]
[1772811194588,0.28432314,85.009,84.981,11.76733622]
[1772811194813,10.8617282,85.0,84.98,0.2]
[1772811195008,0.28432314,85.007,84.98,0.2]
[1772811196104,10.8617282,85.0,84.98,0.2]
[1772811196309,0.28432314,85.007,84.98,0.2]
[1772811196521,0.28432314,85.007,84.98,11.96744207]
[1772811196689,11.76387549,85.006,84.98,0.2]
[1772811196895,0.28432314,85.005,84.98,0.2]
[1772811197706,10.8617282,84.99,84.98,1e-08]
[1772811198504,10.8617282,84.99,84.953,11.77111443]
[1772811198708,10.8617282,84.98,84.947,0.5]
[1772811198898,11.76761317,84.979,84.946,11.77204837]
[1772811199098,0.28432314,84.978,84.94,11.77300756]
[1772811199705,10.8617282,84.97,84.94,11.77300756]
[1772811199899,10.8617282,84.96,84.922,0.5]
[1772811200107,10.8617282,84.96,84.931,11.77426381]
[1772811200300,0.28432314,84.969,84.931,11.77426381]
[1772811200708,0.28432314,84.969,84.926,11.77482486]
[1772811200908,0.28432314,84.957,84.926,11.77485238]
[1772811201108,0.28432314,84.957,84.922,11.77548474]
[1772811201310,10.8617282,84.95,84.918,11.77602754]
[1772811201902,10.8617282,84.95,84.921,11.77553372]
[1772811202218,0.28432314,84.957,84.921,11.77553372]
[1772811202423,10.8617282,84.97,84.931,12.27426381]
[1772811202626,10.8617282,84.98,84.932,0.5]
[1772811202913,4.82477569,84.988,84.934,0.5]
[1772811203098,11.76622857,84.989,84.934,0.5]
[1772811203413,29.41314885,84.996,84.934,0.5]
[1772811203615,11.7649827,84.998,84.934,0.5]
[1772811203827,0.28432314,84.997,84.934,0.5]
[1772811204430,11.7649827,84.998,84.934,0.5]
[1772811204716,4.82477569,85.006,84.936,0.5]
[1772811204897,0.28432314,85.001,84.936,0.5]
[1772811205319,0.28432314,84.999,84.936,0.5]
[1772811206018,10.8617282,85.0,84.936,0.5]
[1772811206019,0.48032359,84.996,84.936,29.5]
[1772811206803,0.28432314,84.997,84.936,29.5]
[1772811207003,0.28432314,84.997,84.935,29.43427326]
[1772811207004,11.76443809,85.002,84.937,0.28432314]
[1772811207195,11.76443809,85.002,84.939,0.28432314]
[1772811207609,11.76249176,85.016,84.939,0.28432314]
[1772811207819,0.48032359,85.015,84.939,0.28432314]
[1772811208002,12.24309207,85.014,84.945,0.45704449]
[1772811208322,0.76464673,85.013,84.945,0.45704449]
[1772811208809,11.76214376,85.019,84.945,0.45704449]
[1772811209010,0.48032359,85.022,84.945,0.45704449]
[1772811209241,11.76180002,85.021,84.945,0.45704449]
[1772811209517,6.10337351,85.033,84.943,3.69383402]
[1772811209518,0.48032359,85.031,84.947,0.45704449]
[1772811209702,11.75926548,85.04,84.948,1.17719075]
[1772811210021,0.48032359,85.039,84.955,0.45704449]
[1772811211111,0.48032359,85.029,84.961,0.45704449]
[1772811211315,0.48032359,85.019,84.961,0.45704449]
[1772811211812,0.49028394,85.009,84.961,0.45704449]
[1772811212012,0.49028394,84.999,84.956,11.770799]
[1772811212207,10.8617282,85.0,84.956,11.770799]
[1772811212208,0.49028394,84.989,84.956,11.770799]
[1772811212524,0.49028394,84.979,84.942,11.77273904]
[1772811213106,0.49028394,84.977,84.942,11.77273904]
[1772811214210,0.49028394,84.976,84.942,11.77273904]
[1772811214422,0.49028394,84.969,84.942,11.77273904]
[1772811214610,0.49028394,84.969,84.933,0.49593172]
[1772811215220,0.49028394,84.967,84.934,11.77384792]
[1772811216220,11.76913661,84.968,84.935,0.49593172]
[1772811216419,0.49028394,84.967,84.935,0.49593172]
[1772811216821,0.49028394,84.976,84.935,0.49593172]
[1772811217025,0.77460708,84.974,84.936,11.77357068]
[1772811217225,0.49028394,84.973,84.937,0.49593172]
[1772811218129,0.49028394,84.973,84.906,3.69383402]
[1772811218130,0.49028394,84.969,84.931,11.77416802]
[1772811218314,0.49028394,84.959,84.923,0.49593172]
[1772811218814,0.49028394,84.959,84.931,11.77426381]
[1772811219219,11.7705219,84.958,84.931,11.77426381]
[1772811219414,11.7689981,84.969,84.932,0.49593172]
[1772811220838,0.49028394,84.987,84.932,0.49593172]
[1772811221214,0.14216157,84.985,84.934,0.49593172]
[1772811221724,0.63244551,84.985,84.934,0.49593172]
[1772811221926,0.77460708,84.985,84.934,0.49593172]
[1772811222422,0.49028394,84.979,84.934,0.49593172]
[1772811223723,0.49028394,84.977,84.936,0.49593172]
[1772811224925,41.18713078,84.978,84.936,0.49593172]
[1772811224926,11.76775165,84.978,84.936,0.49593172]
[1772811225121,10.88172533,84.99,84.936,0.49593172]
[1772811225122,0.49028394,84.999,84.936,0.49593172]
[1772811225320,0.49028394,84.998,84.936,0.49593172]
[1772811225544,0.49028394,84.997,84.936,0.49593172]
[1772811225832,0.49028394,84.986,84.938,0.49593172]
[1772811226046,0.49028394,85.004,84.938,0.49593172]
[1772811226220,11.76368714,85.008,84.942,0.49593172]
[1772811226420,0.49028394,85.026,84.942,0.49593172]
[1772811226719,0.49028394,85.036,84.944,0.49593172]
[1772811226919,0.49028394,85.036,84.947,0.49593172]
[1772811227121,0.49028394,85.035,84.947,0.49593172]
[1772811227631,0.49028394,85.035,84.949,0.49593172]
[1772811228021,0.28432314,85.033,84.955,0.49593172]
[1772811228221,11.76000188,85.034,84.955,0.49593172]
[1772811229124,0.28432314,85.043,84.955,0.49593172]
[1772811229325,0.28432314,85.043,84.958,0.49593172]
[1772811229642,0.49028394,85.042,84.958,0.49593172]
[1772811230026,12.24931781,85.041,84.964,0.49593172]
[1772811230334,0.49028394,85.04,84.964,0.49593172]
[1772811231142,0.49028394,85.039,84.964,0.49593172]
[1772811232141,0.49028394,85.037,84.969,0.49593172]
[1772811232335,0.49028394,85.036,84.97,0.49593172]
[1772811233337,0.49028394,85.028,84.97,0.49593172]
[1772811234237,0.49028394,85.025,84.972,0.49593172]
[1772811234947,11.76046216,85.031,84.972,0.49593172]
[1772811235148,0.49028394,85.03,84.972,0.49593172]
[1772811235345,0.49028394,85.03,84.975,0.47508429]
[1772811235650,0.49028394,85.03,84.976,0.47508429]
[1772811235860,0.47312366,85.044,84.976,0.47508429]
[1772811236149,0.47312366,85.044,84.977,41.18761546]
[1772811236348,0.47312366,85.042,84.979,0.47508429]
[1772811236933,11.75875733,85.043,84.979,0.47508429]
[1772811236934,0.47312366,85.038,84.979,0.47508429]
[1772811237744,0.47312366,85.029,84.979,0.47508429]
[1772811237937,4.82477569,85.041,84.979,0.47508429]
[1772811237938,0.47312366,85.028,84.979,0.47508429]
[1772811238354,11.76024913,85.033,84.982,0.47508429]
[1772811238731,12.23337279,85.033,84.982,0.47508429]
[1772811238933,0.47312366,85.032,84.982,0.47508429]
[1772811239433,0.47312366,85.042,84.982,0.47508429]
[1772811239834,0.47312366,85.039,84.982,0.47508429]
[1772811240034,0.47312366,85.029,84.982,0.47508429]
[1772811240249,0.47312366,85.019,84.98,11.76747469]
[1772811240450,0.47312366,84.999,84.932,0.47508429]
[1772811240754,0.28432314,85.019,84.936,0.47508429]
[1772811240941,11.35484899,85.02,84.934,3.69383402]
[1772811240942,0.47312366,85.02,84.937,0.47508429]
[1772811241133,0.47312366,85.018,84.937,0.47508429]
[1772811242035,0.47312366,85.018,84.94,0.47391213]
[1772811242234,11.76235341,85.017,84.945,0.47391213]
[1772811242450,0.45934068,85.016,84.946,0.47391213]
[1772811242949,10.88172533,85.01,84.946,0.47391213]
[1772811243135,0.45934068,84.999,84.946,0.47391213]
[1772811243330,0.45934068,84.999,84.901,1.17784242]
[1772811243331,0.45934068,84.979,84.928,0.47391213]
[1772811243539,0.45934068,84.969,84.932,0.47391213]
[1772811244039,0.45934068,84.959,84.926,11.77494818]
[1772811244244,0.45934068,84.959,84.925,11.77504728]
[1772811244549,0.45934068,84.957,84.93,11.9743427]
[1772811244749,0.45934068,84.957,84.93,0.2]
[1772811245153,0.45934068,84.957,84.91,0.47391213]
[1772811245154,0.3,84.949,84.91,0.47391213]
[1772811245341,11.7705219,84.958,84.912,0.47391213]
[1772811246345,0.3,84.947,84.902,0.47391213]
[1772811246540,0.3,84.946,84.902,0.47391213]
[1772811247538,10.88172533,84.94,84.902,12.25219768]
[1772811247743,0.3,84.939,84.902,12.25219768]
[1772811248261,0.3,84.929,84.893,0.47391213]
[1772811248460,0.3,84.929,84.891,0.7331048]
[1772811248649,11.18172533,84.92,84.891,0.7331048]
[1772811248840,0.28432314,84.927,84.892,11.77967299]
[1772811249157,0.3,84.926,84.892,11.77967299]
[1772811249460,0.3,84.924,84.892,11.77967299]
[1772811249754,10.88172533,84.94,84.893,0.47391213]
[1772811249937,11.18172533,84.94,84.893,0.47391213]
[1772811250134,10.88172533,84.94,84.893,0.47391213]
[1772811250339,0.3,84.939,84.893,0.47391213]
[1772811250648,11.18172533,84.93,84.893,0.47391213]
[1772811251544,11.18172533,84.93,84.895,0.47391213]
[1772811252240,10.88172533,84.94,84.895,0.47391213]
[1772811252441,10.88172533,84.94,84.894,11.77939548]
[1772811252442,10.88172533,84.93,84.894,11.77939548]
[1772811252665,10.88172533,84.93,84.894,12.25330761]
[1772811252845,0.3,84.929,84.894,41.70179631]
[1772811253039,22.95474157,84.94,84.895,0.47391213]
[1772811253239,11.77301624,84.94,84.895,0.47391213]
[1772811253450,0.3,84.939,84.895,0.47391213]
[1772811253654,0.3,84.937,84.896,11.77911797]
[1772811253853,11.77204609,84.947,84.897,0.47391213]
[1772811254059,10.88172533,84.94,84.897,0.47391213]
[1772811254759,0.3,84.939,84.897,0.47391213]
[1772811255458,11.77204609,84.947,84.897,0.47391213]
[1772811255664,11.77204609,84.947,84.899,0.48603407]
[1772811255958,11.77135308,84.953,84.899,0.48603407]
[1772811256161,0.3,84.939,84.899,0.48603407]
[1772811256658,10.88172533,84.93,84.899,0.48603407]
[1772811257064,0.3,84.929,84.899,0.48603407]
[1772811257471,0.3,84.939,84.899,0.48603407]
[1772811257662,29.4269975,84.956,84.891,0.7331048]
[1772811257663,0.3,84.965,84.902,0.48603407]
[1772811258147,0.3,84.964,84.902,0.48603407]
[1772811258348,0.3,84.984,84.905,0.48603407]
[1772811258651,0.3,84.997,84.908,0.48603407]